bitfinex/quotes_BTCUSD_20250813
["timestamp","ask_amount","ask_price","bid_price","bid_amount"]
[1755086261438,0.053,120450.0,120440.0,0.81827908]
[1755086265399,0.053,120450.0,120440.0,0.58895908]
[1755086265623,0.053,120450.0,120440.0,0.51587908]
[1755086266690,0.003,120450.0,120440.0,0.86831167]
[1755086266903,0.003,120450.0,120440.0,0.75196053]
[1755086267101,0.003,120450.0,120440.0,0.90271353]
[1755086268278,0.003,120450.0,120440.0,0.98543678]
[1755086269346,0.003,120450.0,120440.0,0.85955678]
[1755086269552,0.003,120450.0,120440.0,0.98543678]
[1755086271376,0.003,120450.0,120440.0,1.32543678]
[1755086271552,0.003,120450.0,120440.0,1.62779678]
[1755086273210,0.003,120450.0,120440.0,1.52435678]
[1755086276036,0.003,120450.0,120440.0,1.32543678]
[1755086277564,0.003,120450.0,120440.0,1.19955678]
[1755086277783,0.003,120450.0,120440.0,1.32543678]
[1755086278806,0.003,120450.0,120440.0,1.19955678]
[1755086279023,0.003,120450.0,120440.0,1.32543678]
[1755086279743,0.003,120450.0,120440.0,1.19955678]
[1755086279958,0.003,120450.0,120440.0,1.32543678]
[1755086280329,0.003,120450.0,120440.0,1.19955678]
[1755086280978,0.003,120450.0,120440.0,1.32543678]
[1755086281181,0.003,120450.0,120440.0,1.19955678]
[1755086281567,0.003,120450.0,120440.0,1.62775678]
[1755086281766,0.003,120450.0,120440.0,1.50191678]
[1755086282021,0.003,120450.0,120440.0,1.62775678]
[1755086282633,0.003,120450.0,120440.0,1.50191678]
[1755086282842,0.003,120450.0,120440.0,1.39847678]
[1755086283069,0.003,120450.0,120440.0,1.52431678]
[1755086285819,0.003,120450.0,120440.0,1.32539678]
[1755086287389,0.003,120450.0,120440.0,1.19955678]
[1755086287592,0.003,120450.0,120440.0,1.32539678]
[1755086288209,0.003,120450.0,120440.0,0.63958932]
[1755086288442,0.003,120450.0,120440.0,1.30633906]
[1755086291481,0.003,120450.0,120440.0,1.40977906]
[1755086291676,0.003,120450.0,120440.0,1.60869906]
[1755086292647,0.003,120450.0,120440.0,1.50525906]
[1755086294443,0.003,120450.0,120440.0,0.8194516]
[1755086294646,0.003,120450.0,120440.0,1.50525906]
[1755086296248,0.003,120450.0,120440.0,1.30633906]
[1755086297633,0.003,120450.0,120440.0,1.18049906]
[1755086297820,0.003,120450.0,120440.0,1.30633906]
[1755086299613,0.003,120450.0,120440.0,1.32539678]
[1755086301581,0.003,120450.0,120440.0,1.50191678]
[1755086302235,0.003,120450.0,120440.0,1.52431678]
[1755086302453,0.003,120450.0,120440.0,1.50525906]
[1755086302656,0.003,120450.0,120440.0,1.18049906]
[1755086302868,0.003,120450.0,120440.0,1.30633906]
[1755086305498,19.60116955,120470.0,120460.0,1.05695698]
[1755086305744,19.60116955,120470.0,120460.0,2.04765787]
[1755086306853,19.60316955,120470.0,120460.0,2.04765787]
[1755086307968,19.60616955,120470.0,120460.0,2.04765787]
[1755086311482,19.60616955,120470.0,120460.0,2.02525787]
[1755086311702,19.60616955,120470.0,120460.0,2.35001787]
[1755086312364,19.60616955,120470.0,120460.0,2.24657787]
[1755086312799,19.60616955,120470.0,120460.0,2.12073787]
[1755086313016,19.60616955,120470.0,120460.0,1.92181787]
[1755086313233,19.60616955,120470.0,120460.0,2.04765787]
[1755086313457,19.60616955,120470.0,120460.0,1.57891414]
[1755086313717,20.11133653,120470.0,120460.0,1.70475414]
[1755086314556,19.7684328,120470.0,120460.0,1.70475414]
[1755086314769,20.11133653,120470.0,120460.0,1.70475414]
[1755086316934,19.7684328,120470.0,120460.0,1.70475414]
[1755086317111,20.11133653,120470.0,120460.0,1.70475414]
[1755086319283,20.11133653,120470.0,120460.0,1.57891414]
[1755086319461,20.11133653,120470.0,120460.0,1.70471414]
[1755086321652,20.08633653,120470.0,120460.0,2.00707414]
[1755086321860,20.11163653,120470.0,120460.0,2.00707414]
[1755086322287,19.7687328,120470.0,120460.0,2.00707414]
[1755086322495,20.11163653,120470.0,120460.0,2.00707414]
[1755086323214,20.11163653,120470.0,120460.0,1.98636698]
[1755086325306,19.7687328,120470.0,120460.0,1.98636698]
[1755086325510,20.08663653,120470.0,120460.0,1.98636698]
[1755086326343,20.03663653,120470.0,120460.0,1.98636698]
[1755086327228,20.07908555,120470.0,120460.0,1.86056698]
[1755086327403,20.07908555,120470.0,120460.0,1.98636698]
[1755086327617,20.10396455,120470.0,120460.0,1.98636698]
[1755086328949,20.10396455,120470.0,120460.0,1.86056698]
[1755086329208,20.10396455,120470.0,120460.0,1.98636698]
[1755086329418,20.10196455,120470.0,120460.0,1.98636698]
[1755086329616,20.10296455,120470.0,120460.0,1.98636698]
[1755086330458,20.09996455,120470.0,120460.0,1.98636698]
[1755086330870,20.10096455,120470.0,120460.0,1.98636698]
[1755086331077,20.10096455,120470.0,120460.0,1.86056698]
[1755086331250,20.44096455,120470.0,120460.0,1.98636698]
[1755086331482,20.45648749,120470.0,120460.0,1.98636698]
[1755086331696,20.54370749,120470.0,120460.0,1.98636698]
[1755086332113,20.52818455,120470.0,120460.0,1.98636698]
[1755086332329,20.5437079,120470.0,120460.0,1.98636698]
[1755086336256,20.5437079,120470.0,120460.0,1.86056698]
[1755086336509,20.5437079,120470.0,120460.0,1.98636698]
[1755086339785,20.62619233,120470.0,120460.0,1.98636698]
[1755086340975,20.5437079,120470.0,120460.0,1.98636698]
[1755086341177,20.54369953,120470.0,120460.0,1.98636698]
[1755086344546,20.48915953,120470.0,120460.0,1.98636698]
[1755086345719,20.13074082,120470.0,120460.0,1.98636698]
[1755086345929,20.47364455,120470.0,120460.0,1.98636698]
[1755086347767,20.49896484,120470.0,120460.0,1.98636698]
[1755086347981,20.15606111,120470.0,120460.0,1.98636698]
[1755086348162,20.49896484,120470.0,120460.0,1.98636698]
[1755086348516,20.15606111,120470.0,120460.0,1.98636698]
[1755086348731,20.49896484,120470.0,120460.0,1.98636698]
[1755086349174,20.15606111,120470.0,120460.0,1.98636698]
[1755086349383,20.49896484,120470.0,120460.0,1.98636698]
[1755086351281,20.41174484,120470.0,120460.0,1.98636698]
[1755086352000,20.42726596,120470.0,120460.0,1.98636698]
[1755086352788,20.42726596,120470.0,120460.0,1.86056698]
[1755086353011,20.42726596,120470.0,120460.0,1.98636698]
[1755086353219,20.82833717,120470.0,120460.0,1.98636698]
[1755086353802,20.77016969,120470.0,120460.0,1.98636698]
[1755086354004,20.75464857,120470.0,120460.0,1.98636698]
[1755086354372,20.42627092,120470.0,120460.0,1.98636698]
[1755086354578,20.42527092,120470.0,120460.0,1.98636698]
[1755086354782,20.42927092,120470.0,120460.0,1.98636698]
[1755086355083,20.43227092,120470.0,120460.0,1.98636698]
[1755086355547,20.91950054,120470.0,120460.0,1.98636698]
[1755086355767,20.20158719,120470.0,120460.0,1.98636698]
[1755086355950,20.88739465,120470.0,120460.0,1.98636698]
[1755086356178,20.54449092,120470.0,120460.0,1.98636698]
[1755086356846,20.45727092,120470.0,120460.0,1.98636698]
[1755086363331,20.44174484,120470.0,120460.0,1.98636698]
[1755086363480,20.45727908,120470.0,120460.0,1.98636698]
[1755086363688,20.53976351,120470.0,120460.0,1.98636698]
[1755086363888,20.90766724,120470.0,120460.0,1.98636698]
[1755086364861,20.82518281,120470.0,120460.0,1.98636698]
[1755086365477,20.48227908,120470.0,120460.0,1.98636698]
[1755086365681,20.82518281,120470.0,120460.0,1.98636698]
[1755086369110,20.13937535,120470.0,120460.0,1.98636698]
[1755086369329,20.48227908,120470.0,120460.0,1.98636698]
[1755086369556,20.48224916,120470.0,120460.0,1.98636698]
[1755086372025,20.56473359,120470.0,120460.0,1.98636698]
[1755086372229,20.90763732,120470.0,120460.0,1.86056698]
[1755086372364,20.90763732,120470.0,120460.0,1.98636698]
[1755086372571,20.90763145,120470.0,120460.0,1.98636698]
[1755086373165,20.90763134,120470.0,120460.0,1.98636698]
[1755086373398,20.90763134,120470.0,120460.0,1.86056698]
[1755086373740,20.90763134,120470.0,120460.0,1.98636698]
[1755086375052,20.82514691,120470.0,120460.0,1.98636698]
[1755086375887,20.82514691,120470.0,120460.0,1.84222029]
[1755086376277,20.82514691,120470.0,120460.0,1.71642029]
[1755086376486,20.82514691,120470.0,120460.0,1.84222029]
[1755086376670,20.91236691,120470.0,120460.0,1.84222029]
[1755086376875,20.82514691,120470.0,120460.0,1.84222029]
[1755086377083,20.90763134,120470.0,120460.0,1.84222029]
[1755086378682,20.892133,120470.0,120460.0,1.84222029]
[1755086378885,20.90762773,120470.0,120460.0,1.84222029]
[1755086380122,20.90762773,120470.0,120460.0,1.71642029]
[1755086380270,20.90762773,120470.0,120460.0,1.84222029]
[1755086380887,20.88230744,120470.0,120460.0,1.84222029]
[1755086381552,20.88230744,120470.0,120460.0,1.71642029]
[1755086381767,20.88230744,120470.0,120460.0,1.84222029]
[1755086381908,20.88231006,120470.0,120460.0,1.84222029]
[1755086382488,20.88231082,120470.0,120460.0,1.84222029]
[1755086383729,20.88231082,120470.0,120460.0,1.71642029]
[1755086383862,20.88231082,120470.0,120460.0,1.84222029]
[1755086384212,20.88231132,120470.0,120460.0,1.84222029]
[1755086385053,20.88231252,120470.0,120460.0,1.84222029]
[1755086386732,20.96953252,120470.0,120460.0,1.84222029]
[1755086386922,20.88231252,120470.0,120460.0,1.84222029]
[1755086387506,20.90664088,120470.0,120460.0,1.84222029]
[1755086388793,20.90664088,120470.0,120460.0,1.73878029]
[1755086389744,20.90664088,120470.0,120460.0,1.61298029]
[1755086389988,20.90664088,120470.0,120460.0,1.23753029]
[1755086390323,20.90664088,120470.0,120460.0,1.11173029]
[1755086390570,20.90664088,120470.0,120460.0,1.23753029]
[1755086391122,20.89114107,120470.0,120460.0,1.23753029]
[1755086391287,20.90665465,120470.0,120460.0,1.23753029]
[1755086391671,21.07267108,120470.0,120460.0,1.23753029]
[1755086392026,20.89965465,120470.0,120460.0,1.23753029]
[1755086392232,20.90365465,120470.0,120460.0,1.23753029]
[1755086392441,20.90965465,120470.0,120460.0,1.23753029]
[1755086393027,20.90965465,120470.0,120460.0,1.11173029]
[1755086393225,20.90965465,120470.0,120460.0,1.23753029]
[1755086393583,20.90966764,120470.0,120460.0,1.11173029]
[1755086394043,20.90966764,120470.0,120460.0,1.23753029]
[1755086394454,20.90966764,120470.0,120460.0,1.11173029]
[1755086394647,20.90966764,120470.0,120460.0,1.23753029]
[1755086395171,20.90966764,120470.0,120460.0,1.22823074]
[1755086395587,20.90966764,120470.0,120460.0,1.10243074]
[1755086396008,20.90966764,120470.0,120460.0,1.22823074]
[1755086396514,21.07568407,120470.0,120460.0,1.22823074]
[1755086396721,21.16290407,120470.0,120460.0,1.22823074]
[1755086397073,20.99688808,120470.0,120460.0,1.22823074]
[1755086398249,21.16290451,120470.0,120460.0,1.22823074]
[1755086400020,21.18079019,120470.0,120460.0,1.22823074]
[1755086400221,21.18078899,120470.0,120460.0,1.22823074]
[1755086400535,21.16290331,120470.0,120460.0,1.22823074]
[1755086400743,21.180789,120470.0,120460.0,1.22823074]
[1755086401423,21.180789,120470.0,120460.0,1.11239816]
[1755086401625,21.18511042,120470.0,120460.0,1.11239816]
[1755086401997,21.18511042,120470.0,120460.0,1.1000923]
[1755086403061,20.49930296,120470.0,120460.0,1.1000923]
[1755086403211,21.18511042,120470.0,120460.0,1.1000923]
[1755086403556,21.16722473,120470.0,120460.0,1.1000923]
[1755086405031,21.18510354,120470.0,120460.0,1.1000923]
[1755086405248,21.18510354,120470.0,120460.0,1.1003723]
[1755086405453,21.51012846,120470.0,120460.0,0.9218095]
[1755086405658,21.5220055,120470.0,120460.0,0.71560599]
[1755086405875,21.53558376,120470.0,120460.0,0.82374393]
[1755086406076,21.54058376,120470.0,120460.0,0.82374393]
[1755086406284,21.53476453,120470.0,120460.0,0.81544919]
[1755086406501,0.6235068,120440.0,120430.0,0.20348]
[1755086406708,1.32260171,120440.0,120430.0,0.53063]
[1755086406945,1.40768171,120440.0,120430.0,0.53063]
[1755086407190,0.84860181,120440.0,120430.0,0.40768]
[1755086407410,0.87349381,120440.0,120430.0,0.53372]
[1755086407620,0.92349381,120440.0,120430.0,0.53372]
[1755086407838,0.87349381,120440.0,120430.0,0.53372]
[1755086408040,0.17314106,120440.0,120430.0,0.40768]
[1755086408283,0.51604479,120440.0,120430.0,0.42654974]
[1755086408524,0.51604479,120440.0,120430.0,0.53376]
[1755086408733,0.17314106,120440.0,120430.0,0.53376]
[1755086408941,0.17314106,120440.0,120430.0,0.40768]
[1755086409057,0.17314106,120440.0,120430.0,0.53376]
[1755086409269,0.15114106,120440.0,120430.0,0.53376]
[1755086409474,0.16061525,120440.0,120430.0,0.84168247]
[1755086409679,0.13572325,120440.0,120430.0,0.96776247]
[1755086409893,0.11072325,120440.0,120430.0,0.84268247]
[1755086410093,0.10772325,120440.0,120430.0,0.96776247]
[1755086410481,0.025,120440.0,120430.0,0.88315221]
[1755086410909,0.025,120440.0,120430.0,0.75707221]
[1755086411123,0.026,120440.0,120430.0,0.88315221]
[1755086411540,0.025,120440.0,120430.0,0.96780247]
[1755086412188,0.025,120440.0,120430.0,0.96880247]
[1755086412547,0.025,120440.0,120430.0,0.96780247]
[1755086412908,0.025,120440.0,120430.0,0.97080247]
[1755086413338,0.025,120440.0,120430.0,0.86728247]
[1755086413557,0.025,120450.0,120430.0,0.76011221]
[1755086413780,0.025,120450.0,120440.0,0.51265819]
[1755086414088,0.025,120450.0,120440.0,0.56524247]
[1755086415577,0.025,120450.0,120440.0,0.43920247]
[1755086415731,0.025,120450.0,120440.0,0.56524247]
[1755086415937,0.025,120450.0,120440.0,0.18383]
[1755086416184,0.025,120450.0,120440.0,0.0052]
[1755086416405,0.025,120450.0,120440.0,0.1312]
[1755086416609,0.10772325,120450.0,120440.0,0.1312]
[1755086416833,0.10772325,120450.0,120440.0,0.0052]
[1755086417068,0.10772325,120450.0,120440.0,0.13128]
[1755086420471,0.10772325,120450.0,120440.0,0.51269247]
[1755086420676,0.10772325,120450.0,120440.0,0.38661247]
[1755086420876,0.025,120460.0,120440.0,0.38661247]
[1755086421158,0.025,120460.0,120450.0,0.40548776]
[1755086421331,0.025,120460.0,120450.0,0.51273247]
[1755086421483,0.025,120460.0,120450.0,0.81513247]
[1755086421684,0.02412092,120460.0,120450.0,0.3076]
[1755086421995,0.02412092,120460.0,120450.0,0.81513247]
[1755086422967,0.02412092,120460.0,120450.0,0.43372]
[1755086423205,0.02412092,120460.0,120450.0,0.81513247]
[1755086423426,0.02412092,120460.0,120450.0,0.84331979]
[1755086424043,0.02412092,120460.0,120450.0,0.84431979]
[1755086424252,0.02412092,120460.0,120450.0,0.84531979]
[1755086425064,0.02412092,120460.0,120450.0,0.85531979]
[1755086425870,0.02412092,120460.0,120450.0,0.75187979]
[1755086426127,0.02412092,120460.0,120450.0,0.62575979]
[1755086426441,0.02412092,120460.0,120450.0,0.75187979]
[1755086426921,0.02412092,120460.0,120450.0,0.55291979]
[1755086427755,0.02412092,120460.0,120450.0,0.42679979]
[1755086428167,0.02412092,120460.0,120450.0,0.55291979]
[1755086430079,0.02412092,120460.0,120450.0,0.42679979]
[1755086430308,0.02412092,120460.0,120450.0,0.55287979]
[1755086431297,0.02412092,120460.0,120450.0,0.42679979]
[1755086431477,0.02412092,120460.0,120450.0,0.85527979]
[1755086433359,0.02412092,120460.0,120450.0,0.72919979]
[1755086433517,0.02412092,120460.0,120450.0,0.85523979]
[1755086434670,0.02412092,120460.0,120450.0,0.47382732]
[1755086434896,0.02412092,120460.0,120450.0,0.85523979]
[1755086435299,0.02412092,120460.0,120450.0,0.62575979]
[1755086435456,0.02412092,120460.0,120450.0,0.75179979]
[1755086435806,0.02412092,120460.0,120450.0,0.77181001]
[1755086436504,19.54740047,120470.0,120450.0,0.77177001]
[1755086436649,19.54740047,120470.0,120460.0,0.50948784]
[1755086436847,19.54740047,120470.0,120460.0,0.53348254]
[1755086439520,19.54740047,120470.0,120460.0,0.53448254]
[1755086439962,19.54740047,120470.0,120460.0,0.53444254]
[1755086441478,19.54740047,120470.0,120460.0,0.83680254]
[1755086443846,19.54740047,120470.0,120460.0,0.73336254]
[1755086445141,19.55036047,120470.0,120460.0,0.22082007]
[1755086445347,19.55036047,120470.0,120460.0,0.34670007]
[1755086445717,19.55036047,120470.0,120460.0,0.02190007]
[1755086445960,19.55036047,120470.0,120460.0,0.14778007]
[1755086446131,19.55036047,120470.0,120460.0,0.02190007]
[1755086446554,19.55036047,120470.0,120460.0,0.14778007]
[1755086447167,19.56585921,120470.0,120460.0,0.14778007]
[1755086447985,19.56586084,120470.0,120460.0,0.14778007]
[1755086451500,19.56586084,120470.0,120460.0,0.45014007]
[1755086455501,19.56586084,120470.0,120460.0,0.34670007]
[1755086456984,19.55036047,120470.0,120460.0,0.34670007]
[1755086457149,19.56587979,120470.0,120460.0,0.34670007]
[1755086457350,19.56587979,120470.0,120460.0,0.34662007]
[1755086457590,19.56587979,120470.0,120460.0,0.22082007]
[1755086457789,19.56587979,120470.0,120460.0,0.34662007]
[1755086457989,19.56587979,120470.0,120460.0,0.22082007]
[1755086458168,19.56587979,120470.0,120460.0,0.34662007]
[1755086458539,19.56587979,120470.0,120460.0,0.22082007]
[1755086458748,19.56587979,120470.0,120460.0,0.34658007]
[1755086461419,19.56587979,120470.0,120460.0,0.45002007]
[1755086461630,19.56587979,120470.0,120460.0,0.32426007]
[1755086461847,19.56587979,120470.0,120460.0,0.45002007]
[1755086462222,19.56589019,120470.0,120460.0,0.45002007]
[1755086462607,19.56589019,120470.0,120460.0,0.32426007]
[1755086462815,19.56589019,120470.0,120460.0,0.45006007]
[1755086464154,19.55036047,120470.0,120460.0,0.45006007]
[1755086466256,19.55036047,120470.0,120460.0,0.32426007]
[1755086466483,19.55036047,120470.0,120460.0,0.45010007]
[1755086467166,19.55036047,120470.0,120460.0,0.45018007]
[1755086467630,19.55036047,120470.0,120460.0,0.44091386]
[1755086470901,19.63308372,120470.0,120460.0,0.44091386]
[1755086471082,19.63308372,120470.0,120460.0,0.33747386]
[1755086471527,19.63308372,120470.0,120460.0,0.44091386]
[1755086473064,19.63308372,120470.0,120460.0,0.31499386]
[1755086473305,19.63308372,120470.0,120460.0,0.44091386]
[1755086474136,20.01449619,120470.0,120460.0,0.44091386]
[1755086474351,20.10456517,120470.0,120460.0,0.44091386]
[1755086474554,20.05694521,120470.0,120460.0,0.44091386]
[1755086475276,20.08140171,120470.0,120460.0,0.44091386]
[1755086475930,19.69998924,120470.0,120460.0,0.44091386]
[1755086476080,20.08140171,120470.0,120460.0,0.31499386]
[1755086476289,20.08140171,120470.0,120460.0,0.44099386]
[1755086477338,20.08140171,120470.0,120460.0,0.31499386]
[1755086477540,20.08140171,120470.0,120460.0,0.44099386]
[1755086477761,20.08140171,120470.0,120460.0,0.30336]
[1755086477909,20.08140171,120470.0,120460.0,0.42932]
[1755086478107,20.05640171,120470.0,120460.0,0.30336]
[1755086478324,20.08140171,120470.0,120460.0,0.42932]
[1755086479202,20.08140171,120470.0,120460.0,0.30336]
[1755086479408,20.08140171,120470.0,120460.0,0.42932]
[1755086480497,20.08140171,120470.0,120460.0,0.30336]
[1755086480748,20.08140171,120470.0,120460.0,0.42932]
[1755086482564,20.08140171,120470.0,120460.0,0.42832]
[1755086483800,20.06395269,120470.0,120460.0,0.42832]
[1755086484478,20.06395269,120470.0,120460.0,0.30236]
[1755086484479,20.08140171,120470.0,120460.0,0.30236]
[1755086484684,20.16388614,120470.0,120460.0,0.42828]
[1755086485125,20.08140171,120470.0,120460.0,0.42828]
[1755086485810,20.08140171,120470.0,120460.0,0.30236]
[1755086486008,20.08140171,120470.0,120460.0,0.42828]
[1755086487369,20.06395269,120470.0,120460.0,0.42828]
[1755086488152,20.05640171,120470.0,120460.0,0.42828]
[1755086488684,20.08140171,120470.0,120460.0,0.42828]
[1755086488803,20.05640171,120470.0,120460.0,0.42828]
[1755086489602,19.67498924,120470.0,120460.0,0.30236]
[1755086489802,20.05640171,120470.0,120460.0,0.42828]
[1755086492479,20.08797934,120470.0,120460.0,0.42828]
[1755086492685,20.05640171,120470.0,120460.0,0.42828]
[1755086496063,20.05640171,120470.0,120460.0,0.30441]
[1755086496064,19.64757274,120470.0,120460.0,0.30441]
[1755086496464,19.64757274,120470.0,120460.0,0.43033]
[1755086498681,20.02898521,120470.0,120460.0,0.43033]
[1755086500172,19.64757274,120470.0,120460.0,0.43322]
[1755086500578,19.64757274,120470.0,120460.0,0.30441]
[1755086501007,19.64757274,120470.0,120460.0,0.30236]
[1755086501212,20.03204521,120470.0,120460.0,0.30236]
[1755086501367,20.0475741,120470.0,120460.0,0.30236]
[1755086501570,20.0475741,120470.0,120460.0,0.42824]
[1755086502044,19.65063274,120470.0,120460.0,0.42824]
[1755086502222,20.047577,120470.0,120460.0,0.42824]
[1755086503565,20.047577,120470.0,120460.0,0.30236]
[1755086504060,20.047577,120470.0,120460.0,0.4282]
[1755086506075,20.072456,120470.0,120460.0,0.4282]
[1755086507835,20.047577,120470.0,120460.0,0.4282]
[1755086508051,20.13006143,120470.0,120460.0,0.30236]
[1755086508263,20.097458,120470.0,120460.0,0.42816]
[1755086509627,20.097458,120470.0,120460.0,0.4282]
[1755086510127,20.03104553,120470.0,120460.0,0.3024]
[1755086510515,20.05604553,120470.0,120460.0,0.3024]
[1755086510935,20.05604553,120470.0,120460.0,0.10344]
[1755086511172,20.03104553,120470.0,120460.0,0.3024]
[1755086511375,20.4384701,120470.0,120460.0,0.4282]
[1755086511520,20.4384701,120470.0,120460.0,0.3024]
[1755086511705,20.4384701,120470.0,120460.0,0.4282]
[1755086512321,20.05705763,120470.0,120460.0,0.4282]
[1755086512517,20.4384701,120470.0,120460.0,0.3024]
[1755086512742,20.4384701,120470.0,120460.0,0.4282]
[1755086513947,20.4384701,120470.0,120460.0,0.3024]
[1755086514161,20.4384701,120470.0,120460.0,0.4282]
[1755086514368,20.4384701,120470.0,120460.0,0.10344]
[1755086514567,20.4384701,120470.0,120460.0,0.4282]
[1755086515594,20.05705763,120470.0,120460.0,0.4282]
[1755086515803,20.4384701,120470.0,120460.0,0.3024]
[1755086516037,20.4384701,120470.0,120460.0,0.4282]
[1755086516198,0.00923635,120460.0,120440.0,0.00293]
[1755086516394,0.10017227,120450.0,120440.0,0.00293]
[1755086516661,0.10017227,120450.0,120440.0,0.21394]
[1755086517407,0.10017227,120450.0,120440.0,0.33974]
[1755086517809,0.10017227,120450.0,120440.0,0.34074]
[1755086518645,0.10017227,120450.0,120440.0,0.34174]
[1755086519047,0.10017227,120450.0,120440.0,0.01598]
[1755086519264,0.10017227,120450.0,120440.0,0.01698]
[1755086519466,0.10017227,120450.0,120440.0,0.14278]
[1755086521190,0.10017227,120450.0,120440.0,0.01698]
[1755086521396,0.12429319,120450.0,120440.0,0.24622]
[1755086521597,0.12429319,120450.0,120440.0,0.44518]
[1755086521800,0.10684417,120450.0,120440.0,0.44518]
[1755086522312,0.12429319,120450.0,120440.0,0.43594357]
[1755086524913,0.12429319,120450.0,120440.0,0.31014357]
[1755086525119,0.12429319,120450.0,120440.0,0.43594357]
[1755086526366,0.12429319,120450.0,120440.0,0.00774357]
[1755086526567,0.12429319,120450.0,120440.0,0.33250357]
[1755086526790,0.12429319,120450.0,120440.0,0.13354357]
[1755086527904,0.10684417,120450.0,120440.0,0.47668819]
[1755086528103,0.10684417,120450.0,120440.0,0.47802819]
[1755086528608,0.10684417,120450.0,120440.0,0.47668819]
[1755086531581,0.10684417,120450.0,120440.0,0.77908819]
[1755086532004,0.10684417,120450.0,120440.0,0.78042819]
[1755086532500,0.10684417,120450.0,120440.0,0.65462819]
[1755086532724,0.10684417,120450.0,120440.0,0.45566819]
[1755086532918,0.10684417,120450.0,120440.0,0.78042819]
[1755086533755,0.10684417,120450.0,120440.0,0.35222819]
[1755086533964,0.10684417,120450.0,120440.0,0.9037806]
[1755086533965,0.02412092,120450.0,120440.0,0.9037806]
[1755086534175,0.02412092,120450.0,120440.0,0.69588377]
[1755086534380,0.02412092,120450.0,120440.0,0.37112377]
[1755086534596,0.02412092,120450.0,120440.0,0.49692377]
[1755086534958,0.02412092,120450.0,120440.0,0.15277915]
[1755086535167,0.02412092,120450.0,120440.0,0.37327521]
[1755086535395,0.02412092,120450.0,120440.0,0.49692377]
[1755086536034,0.02412092,120450.0,120440.0,0.49892377]
[1755086541590,0.02412092,120460.0,120440.0,0.45817915]
[1755086541801,0.10684417,120460.0,120450.0,0.34522017]
[1755086542038,0.10684417,120460.0,120450.0,0.34513462]
[1755086542250,0.08272325,120460.0,120450.0,0.34513462]
[1755086542467,0.10684417,120460.0,120450.0,0.34513462]
[1755086543973,0.10684417,120460.0,120450.0,0.34713462]
[1755086546055,0.02412092,120460.0,120450.0,0.00399]
[1755086546290,0.02412092,120460.0,120450.0,0.34198378]
[1755086547255,19.54740047,120470.0,120450.0,0.70402398]
[1755086547475,19.54740047,120470.0,120460.0,0.46998183]
[1755086547626,19.54740047,120470.0,120460.0,0.46894462]
[1755086548750,19.54840047,120470.0,120460.0,0.34314462]
[1755086549956,19.55143047,120470.0,120460.0,0.46894462]
[1755086550521,19.55143047,120470.0,120460.0,0.1258]
[1755086550723,19.55143047,120470.0,120460.0,0.46894462]
[1755086551497,19.55143047,120470.0,120460.0,0.77130462]
[1755086552619,19.54840047,120470.0,120460.0,0.77130462]
[1755086552793,19.54840047,120470.0,120460.0,0.7902002]
[1755086552995,19.54840047,120470.0,120460.0,0.77130462]
[1755086553446,19.55143047,120470.0,120460.0,0.77130462]
[1755086553625,19.55043047,120470.0,120460.0,0.42816]
[1755086553812,19.55043047,120470.0,120460.0,0.77430462]
[1755086554017,19.54740047,120470.0,120460.0,0.67086462]
[1755086554168,19.54740047,120470.0,120460.0,0.6897602]
[1755086555987,19.54740047,120470.0,120460.0,0.34661558]
[1755086556201,19.55043047,120470.0,120460.0,0.34661558]
[1755086556431,19.54740047,120470.0,120460.0,0.6897602]
[1755086556606,19.55043047,120470.0,120460.0,0.33574678]
[1755086556951,19.55043047,120470.0,120460.0,0.33075774]
[1755086557817,19.55043047,120470.0,120460.0,0.46938462]
[1755086560585,19.52327955,120470.0,120460.0,0.3620402]
[1755086560798,19.52327955,120470.0,120460.0,0.4882402]
[1755086561450,19.52327955,120470.0,120460.0,0.5131112]
[1755086561652,19.52327955,120470.0,120460.0,0.8154712]
[1755086563635,19.52327955,120470.0,120460.0,1.1554712]
[1755086565536,19.52327955,120470.0,120460.0,1.0520312]
[1755086566986,19.52327955,120470.0,120460.0,0.9258312]
[1755086567422,19.52327955,120470.0,120460.0,1.40710582]
[1755086567748,19.52327955,120470.0,120460.0,1.36370907]
[1755086567973,19.52327955,120470.0,120460.0,1.48982907]
[1755086568174,19.52327955,120470.0,120460.0,1.36370907]
[1755086568404,19.52327955,120470.0,120460.0,1.48978907]
[1755086569548,19.52327955,120470.0,120460.0,1.14664445]
[1755086571596,19.52327955,120470.0,120460.0,1.44892445]
[1755086573830,19.52630955,120470.0,120460.0,1.44892445]
[1755086574191,19.52327955,120470.0,120460.0,1.44892445]
[1755086574391,19.52327955,120470.0,120460.0,1.79206907]
[1755086575213,19.52327955,120470.0,120460.0,1.64654082]
[1755086575455,19.52327955,120470.0,120460.0,1.54314082]
[1755086575653,19.52327955,120470.0,120460.0,1.56800882]
[1755086576548,19.52327955,120470.0,120460.0,1.56792882]
[1755086577776,19.52630955,120470.0,120460.0,1.56792882]
[1755086578622,19.52630955,120470.0,120460.0,1.36904882]
[1755086578838,19.52630955,120470.0,120460.0,1.0259042]
[1755086579411,19.52630955,120470.0,120460.0,0.68275958]
[1755086579613,19.52630955,120470.0,120460.0,1.0259042]
[1755086581347,19.52630955,120470.0,120460.0,0.8999042]
[1755086581561,19.52630955,120470.0,120460.0,1.3281042]
[1755086585576,19.52630955,120470.0,120460.0,0.98495958]
[1755086585986,19.52630955,120470.0,120460.0,1.3281042]
[1755086587367,19.52630955,120470.0,120460.0,1.2247042]
[1755086589662,19.52630955,120470.0,120460.0,1.2245842]
[1755086590072,19.52630955,120470.0,120460.0,0.8999042]
[1755086590274,19.52630955,120470.0,120460.0,1.0257042]
[1755086591464,19.52630955,120470.0,120460.0,1.3279842]
[1755086593897,19.52630955,120470.0,120460.0,0.98483958]
[1755086594070,19.52630955,120470.0,120460.0,1.3279842]
[1755086595587,19.52630955,120470.0,120460.0,1.0987842]
[1755086595810,19.52630955,120470.0,120460.0,1.2247042]
[1755086596182,19.52630955,120470.0,120460.0,1.56784882]
[1755086596575,19.52630955,120470.0,120460.0,1.66784882]
[1755086596998,19.52327955,120470.0,120460.0,1.46896882]
[1755086597202,19.52327955,120470.0,120460.0,1.34304882]
[1755086597440,19.52327955,120470.0,120460.0,1.34804882]
[1755086597646,19.52327955,120470.0,120460.0,1.49417519]
[1755086597858,19.52327955,120470.0,120460.0,1.49517519]
[1755086598278,19.52327955,120470.0,120460.0,1.49417519]
[1755086598635,19.52327955,120470.0,120460.0,1.49717519]
[1755086599089,19.52327955,120470.0,120460.0,1.37129519]
[1755086599500,19.52621955,120470.0,120460.0,1.47688882]
[1755086600242,19.52621955,120470.0,120460.0,1.35104882]
[1755086600453,19.52621955,120470.0,120460.0,1.47688882]
[1755086600665,19.52621955,120470.0,120460.0,0.79059958]
[1755086600871,19.52621955,120470.0,120460.0,1.47688882]